bitfinex-derivatives/quotes_ETHF0:USTF0_20250411
["timestamp","ask_amount","ask_price","bid_price","bid_amount"]
[1744370909113,0.00960031,1559.9,1559.8,8.86505]
[1744370909309,11.90428317,1560.1,1559.8,8.86505]
[1744370909310,7.41376317,1560.1,1560.0,1.28279]
[1744370910122,7.41376317,1560.1,1560.0,3.86489]
[1744370911017,7.41376317,1560.1,1560.0,8.86489]
[1744370911919,0.00960031,1560.2,1560.0,7.5821]
[1744370912124,0.00960031,1560.2,1560.1,9.07501]
[1744370912326,0.00960031,1560.2,1560.1,49.87501]
[1744370912622,0.00320105,1560.2,1560.1,54.87501]
[1744370913030,0.00320105,1560.2,1560.1,49.87501]
[1744370914719,0.00320105,1560.2,1560.1,45.29051]
[1744370915033,1.28583105,1560.2,1560.1,45.29051]
[1744370915331,1.28583105,1560.2,1560.1,44.0078]
[1744370915633,1.28583105,1560.2,1560.1,45.29051]
[1744370916035,3.84153105,1560.2,1560.1,45.29051]
[1744370916327,1.28271,1560.1,1560.0,3.86482]
[1744370916537,2.5557,1560.1,1560.0,3.86482]
[1744370916724,0.00320105,1560.2,1560.1,1.28271]
[1744370917324,4.00250105,1560.2,1560.0,42.90880013]
[1744370917521,4.00250105,1560.2,1560.1,1.28271]
[1744370918336,2.71980105,1560.2,1560.1,1.28271]
[1744370918540,4.00243105,1560.2,1560.1,1.28271]
[1744370918942,1.28271,1560.1,1560.0,42.90880013]
[1744370919139,3.99931,1560.1,1560.0,44.19159013]
[1744370919542,2.7166,1560.1,1560.0,44.19159013]
[1744370919744,1.28588105,1560.2,1560.1,1.28271]
[1744370919940,1.28583105,1560.2,1560.1,1.28271]
[1744370920144,1.28271,1560.1,1560.0,44.19152013]
[1744370920350,4.04761,1560.1,1560.0,44.19152013]
[1744370921439,1.28279,1560.0,1559.9,0.00960031]
[1744370921655,7.25549,1560.0,1559.9,0.00960031]
[1744370921947,7.25549,1560.0,1559.9,1.29247031]
[1744370922144,7.25549,1560.0,1559.9,0.00960031]
[1744370922346,12.25549,1560.0,1559.9,0.00960031]
[1744370922841,12.25549,1560.0,1559.9,40.80960031]
[1744370923450,7.25549,1560.0,1559.9,0.00960031]
[1744370924151,2.7649,1560.0,1559.9,1.29247031]
[1744370924451,4.04769,1560.0,1559.9,1.29247031]
[1744370924643,4.04769,1560.0,1559.9,3.90417031]
[1744370925045,2.7649,1560.0,1559.9,3.90417031]
[1744370926051,6.98292105,1560.2,1560.1,1.28271]
[1744370926245,9.62612105,1560.2,1560.1,1.28271]
[1744370926444,2.64640105,1560.2,1560.1,3.85271]
[1744370926654,0.00320105,1560.2,1560.1,3.85271]
[1744370927649,0.00320105,1560.2,1560.1,14.54971]
[1744370927846,0.00320105,1560.2,1560.1,9.54971]
[1744370928354,0.00320105,1560.2,1560.1,14.54971]
[1744370928855,0.00320105,1560.2,1560.1,9.54971]
[1744370930845,0.00320105,1560.2,1560.1,1.28271]
[1744370930846,1.28583105,1560.2,1560.1,1.28271]
[1744370931053,1.28583105,1560.2,1560.0,3.2078]
[1744370931054,1.28271,1560.1,1560.0,4.08972]
[1744370931251,4.04047105,1560.2,1560.1,1.28271]
[1744370931452,4.04047105,1560.2,1560.1,4.08971]
[1744370931955,2.75780105,1560.2,1560.1,4.08971]
[1744370932158,4.04043105,1560.2,1560.1,4.08971]
[1744370932457,4.04043105,1560.2,1560.1,1.28271]
[1744370933559,2.75780105,1560.2,1560.1,1.28271]
[1744370933749,2.75780105,1560.2,1560.1,3.93391]
[1744370934055,4.04043105,1560.2,1560.1,3.93391]
[1744370934751,1.28279,1560.1,1560.0,1.28276]
[1744370934958,1.28279,1560.0,1559.9,3.94360031]
[1744370935352,6.24397,1560.1,1560.0,1.28279]
[1744370935551,3.58547,1560.1,1560.0,1.28279]
[1744370935857,6.03517,1560.1,1560.0,1.28279]
[1744370936857,1.28279,1560.0,1559.9,1.29242031]
[1744370937447,1.28279,1560.0,1559.9,3.92022031]
[1744370937859,6.03515,1560.1,1560.0,1.28279]
[1744370939551,1.28279,1560.0,1559.9,3.92023031]
[1744370939751,6.03514,1560.1,1560.0,1.28279]
[1744370939951,6.03514,1560.1,1560.0,4.06659]
[1744370940560,1.28279,1560.0,1559.9,1.29240031]
[1744370940761,6.03518,1560.1,1560.0,1.28279]
[1744370941758,6.03518,1560.1,1560.0,3.91809]
[1744370941952,1.28590105,1560.2,1560.1,1.28271]
[1744370942353,1.28590105,1560.2,1560.1,42.08271]
[1744370943160,6.20911029,1560.2,1560.1,42.08271]
[1744370943556,6.20911029,1560.2,1560.1,44.71801]
[1744370945160,6.20911029,1560.2,1560.1,2.6353]
[1744370945355,1.28271,1560.1,1560.0,1.28276]
[1744370945559,1.28279,1560.0,1559.9,4.03800031]
[1744370945858,1.28276,1560.1,1560.0,1.28271]
[1744370946057,1.28276,1560.1,1560.0,4.02831]
[1744370948365,6.20911029,1560.2,1560.0,2.7456]
[1744370948664,1.28271,1560.1,1560.0,4.02831]
[1744370948960,1.28279,1560.0,1559.9,1.29241031]
[1744370949661,1.28279,1560.0,1559.9,3.92331031]
[1744370949864,4.12819,1560.0,1559.9,0.00960031]
[1744370950057,1.28309,1559.7,1559.6,1.28303]
[1744370950256,1.28312,1559.6,1559.5,9.37104]
[1744370950555,3.96412,1559.6,1559.5,1.28314]
[1744370950863,6.22752,1559.6,1559.5,1.28314]
[1744370951660,6.41515,1559.9,1559.4,9.19011031]
[1744370951960,1.28318,1559.6,1559.5,1.28312]
[1744370952362,1.2832,1559.5,1559.4,7.26532031]
[1744370952661,3.9642,1559.5,1559.4,2.77430031]
[1744370952866,3.9642,1559.5,1559.4,0.00960031]
[1744370953266,3.9642,1559.5,1559.4,1.29288031]
[1744370953463,3.9642,1559.5,1559.4,4.02818031]
[1744370953860,9.0921397,1560.1,1559.6,1.28312]
[1744370954165,10.0057197,1560.1,1560.0,1.28279]
[1744370954460,10.0057197,1560.1,1559.7,5.213]
[1744370954461,6.82168105,1560.2,1560.1,1.28271]
[1744370954655,4.49363105,1560.2,1560.1,1.28271]
[1744370955366,3.21100105,1560.2,1560.1,1.28271]
[1744370955665,0.00320105,1560.2,1560.1,1.28271]
[1744370955858,0.00320105,1560.2,1560.1,6.00771]
[1744370956060,0.00320105,1560.2,1560.1,13.74301]
[1744370957564,18.73586547,1560.4,1560.3,1.28254]
[1744370957765,18.73586547,1560.4,1560.3,9.70334]
[1744370958071,18.73586547,1560.4,1560.3,55.50334]
[1744370958263,10.88094956,1560.5,1560.4,1.28246]
[1744370958562,10.88094956,1560.5,1560.4,3.97586]
[1744370958762,10.88094956,1560.5,1560.4,8.97586]
[1744370959156,10.88094956,1560.5,1560.4,3.97586]
[1744370962969,10.88094956,1560.5,1560.4,1.28246]
[1744370963464,4.96790565,1560.6,1560.5,1.28238]
[1744370963868,4.96790565,1560.6,1560.5,6.49438]
[1744370964665,3.67547639,1560.6,1560.5,12.08048]
[1744370965471,2.08475639,1560.6,1560.5,17.08048]
[1744370965771,6.39e-06,1560.6,1560.5,17.08048]
[1744370965971,6.39e-06,1560.6,1560.5,57.88048]
[1744370966966,6.39e-06,1560.6,1560.5,52.88048]
[1744370967563,6.39e-06,1560.6,1560.5,57.88048]
[1744370967869,0.00960031,1560.7,1560.6,1.2823]
[1744370968173,0.00960031,1560.7,1560.6,6.78889237]
[1744370968566,0.00960031,1560.7,1560.6,47.58889237]
[1744370969073,3.71731478,1561.0,1560.9,1.28205]
[1744370969074,0.96161478,1561.0,1560.9,1.28205]
[1744370969383,0.95201447,1561.0,1560.9,9.69985]
[1744370969767,0.95201447,1561.0,1560.9,50.49985]
[1744370971780,0.00960031,1561.1,1561.0,1.28197]
[1744370971972,0.00960031,1561.1,1561.0,4.12407]
[1744370972371,0.00960031,1561.1,1561.0,6.52327]
[1744370972677,0.00960031,1561.1,1561.0,4.12407]
[1744370973077,2.92160031,1561.1,1561.0,4.12407]
[1744370973575,4.20349031,1561.1,1561.0,1.28197]
[1744370974279,2.92160031,1561.1,1561.0,1.28197]
[1744370975680,4.20349031,1561.1,1561.0,1.28197]
[1744370975879,2.92160031,1561.1,1561.0,1.28197]
[1744370976380,4.20349031,1561.1,1561.0,1.28197]
[1744370976576,1.28197,1561.0,1560.9,42.08198]
[1744370976876,4.04387,1561.0,1560.9,40.8]
[1744370977077,11.50497,1561.0,1560.9,40.8]
[1744370977278,11.50497,1561.0,1560.9,42.08205]
[1744370977673,11.50497,1561.0,1560.9,1.28205]
[1744370978177,10.223,1561.0,1560.9,1.28205]
[1744370978377,0.00960031,1561.1,1561.0,1.28197]
[1744370978571,1.29149031,1561.1,1561.0,1.28197]
[1744370978778,1.28203,1561.0,1560.9,1.28199]
[1744370978976,3.99873,1561.0,1560.9,1.28199]
[1744370979178,1.28205,1560.9,1560.8,42.08209]
[1744370979383,8.73065,1560.9,1560.8,42.08209]
[1744370979576,18.86174,1560.9,1560.5,4.49013]
[1744370979777,18.86174,1560.9,1560.5,1.28233]
[1744370979778,1.2823,1560.6,1560.5,1.28233]
[1744370980280,1.28238,1560.5,1560.4,9.2318]
[1744370981582,1.28238,1560.5,1560.4,4.0228]
[1744370981875,1.28238,1560.5,1560.4,1.2824]
[1744370982087,3.66308,1560.5,1560.4,1.2824]
[1744370983172,2.3807,1560.5,1560.4,1.2824]
[1744370983379,2.7167,1560.6,1560.5,1.28238]
[1744370983586,3.999,1560.6,1560.5,1.28238]
[1744370984383,2.7167,1560.6,1560.5,1.28238]
[1744370984685,3.999,1560.6,1560.5,1.28238]
[1744370986690,1.28238,1560.5,1560.4,3.96448]
[1744370986889,4.23028,1560.5,1560.4,3.96448]
[1744370988483,2.9479,1560.5,1560.4,3.96448]
[1744370988681,2.9479,1560.5,1560.4,7.17228]
[1744370988893,6.87075,1560.7,1560.6,1.2823]
[1744370989388,1.2823,1560.6,1560.5,4.09222]
[1744370989591,6.87078,1560.7,1560.6,1.2823]
[1744370989894,1.2822,1560.8,1560.7,1.28216]
[1744370990279,1.28295,1559.8,1559.7,0.73186]
[1744370990585,4.49075,1559.8,1559.7,0.73186]
[1744370990782,9.49075,1559.8,1559.7,0.73186]
[1744370990985,1.28318,1559.6,1559.4,11.26042149]
[1744370991182,3.2078,1559.6,1559.4,12.65668149]
[1744370991493,4.49093,1559.6,1559.4,9.97718149]
[1744370991789,4.0542,1559.5,1559.4,11.26041149]
[1744370991986,4.0542,1559.5,1559.4,13.93991149]
[1744370992491,3.2078,1559.6,1559.5,1.2832]
[1744370992691,5.9788,1559.6,1559.5,3.9627]
[1744370992891,7.26192,1559.6,1559.5,3.9627]
[1744370993580,7.26192,1559.6,1559.5,2.6795]
[1744370994085,7.26192,1559.6,1559.5,3.9627]
[1744370994885,3.2078,1559.6,1559.5,3.9627]
[1744370996788,3.2078,1559.6,1559.5,10.37830031]
[1744370997685,0.00960031,1559.7,1559.6,1.28312]
[1744370997891,0.00960031,1559.7,1559.6,11.65802]
[1744370998094,0.00960031,1559.7,1559.6,16.65802]
[1744370998593,0.00960031,1559.7,1559.6,23.07362031]
[1744370999695,0.00960031,1559.7,1559.6,18.07362031]
[1744371001293,0.00960031,1559.7,1559.6,11.65802]
[1744371001493,0.00960031,1559.7,1559.6,16.65802]
[1744371001683,3.2078,1560.0,1559.9,1.28287]
[1744371001889,7.40915724,1560.2,1560.1,1.28271]
[1744371002392,7.39021,1560.3,1560.1,4.02241]
[1744371002592,1.28263,1560.2,1560.1,4.02241]
[1744371002789,11.10313724,1560.4,1560.3,1.28254]
[1744371002990,8.69163724,1560.4,1560.3,1.28254]
[1744371003198,7.40915724,1560.4,1560.2,1.29215031]
[1744371003496,8.69169724,1560.4,1560.3,1.28254]
[1744371003790,7.40915724,1560.4,1560.3,1.28254]
[1744371005394,7.40915724,1560.4,1560.3,4.49034031]
[1744371006089,7.40915724,1560.4,1560.3,9.49034]
[1744371006293,0.00960031,1560.5,1560.4,1.28246]
[1744371006497,0.00960031,1560.5,1560.4,3.72246]
[1744371007391,0.00960031,1560.5,1560.4,44.52246]
[1744371008600,0.00960031,1560.5,1560.4,47.73026031]
[1744371008798,3.1e-07,1560.5,1560.4,49.52246]
[1744371009494,3.1e-07,1560.5,1560.4,52.73026031]
[1744371010697,3.1e-07,1560.5,1560.4,49.52246]
[1744371011092,2.4508,1561.1,1560.6,6.41146]
[1744371011392,2.4508,1561.1,1561.0,1.28197]
[1744371011593,14.81962724,1561.2,1560.8,6.41068]
[1744371011797,2.9208,1561.1,1561.0,1.28191]
[1744371011999,2.9208,1561.1,1561.0,6.35891]
[1744371012994,7.41875755,1561.2,1561.1,1.28189]
[1744371013802,7.41875755,1561.2,1561.1,4.48969]
[1744371015204,5.26827786,1561.2,1561.1,9.48969]
[1744371015500,3.55276786,1561.2,1561.1,4.48969]
[1744371015698,0.00960031,1561.2,1561.1,4.48969]
[1744371015897,3.1e-07,1561.2,1561.1,47.08189]
[1744371016098,3.1e-07,1561.2,1561.1,50.28969]
[1744371016803,3.1e-07,1561.2,1561.1,53.49749]
[1744371017203,3.54316755,1561.6,1561.5,1.28156]
[1744371017204,0.33536786,1561.6,1561.5,1.28156]
[1744371017405,0.33536786,1561.6,1561.5,6.42456]
[1744371017904,0.33536786,1561.6,1561.4,2.4784]
[1744371017905,3.2039,1561.5,1561.1,40.8]
[1744371018103,6.0147,1561.4,1561.2,1.28174]
[1744371018306,5.2077,1561.3,1561.2,1.2818]
[1744371018805,5.2077,1561.3,1561.2,6.4238]
[1744371019907,5.2077,1561.3,1561.2,9.292]
[1744371020107,2.33069986,1561.5,1561.4,1.28164]
[1744371020408,5.00869986,1561.5,1561.4,1.28164]
[1744371022606,5.00869986,1561.5,1561.3,1.28166]
[1744371022807,5.0576,1561.4,1561.3,1.28172]
[1744371023008,6.33931,1561.4,1561.3,1.28172]
[1744371023708,5.0576,1561.4,1561.3,1.28172]
[1744371024801,6.33924,1561.4,1561.3,1.28172]
[1744371024999,1.28172,1561.3,1561.2,5.142]
[1744371025201,4.16212,1561.3,1561.2,6.42376]
[1744371025611,4.16212,1561.3,1561.2,1.28176]
[1744371026607,2.8804,1561.3,1561.1,42.08182]
[1744371026813,4.1795,1561.2,1561.1,42.08182]
[1744371027017,2.8977,1561.2,1561.1,42.08182]
[1744371027716,2.8977,1561.2,1561.1,44.94242]
[1744371028011,5.5874,1561.4,1561.3,1.28172]
[1744371028212,8.4851,1561.4,1561.3,1.28172]
[1744371028414,5.2773,1561.4,1561.3,1.28172]
[1744371029115,5.2773,1561.4,1561.3,4.14232]
[1744371033116,0.00639986,1561.5,1561.4,1.28164]
[1744371033316,2.88049986,1561.5,1561.4,4.00794]
[1744371034012,2.88049986,1561.5,1561.4,1.28164]
[1744371034711,2.88049986,1561.5,1561.4,6.42264]
[1744371035309,2.88049986,1561.5,1561.4,1.28164]
[1744371035515,1.28164,1561.4,1561.3,1.28172]
[1744371035710,1.28164,1561.4,1561.1,47.21248]
[1744371035711,3.2078,1561.4,1561.1,47.21248]
[1744371035913,4.48949,1561.4,1561.2,1.28173]
[1744371036217,6.41191,1561.4,1561.0,0.00960031]
[1744371036416,3.2078,1561.1,1561.0,0.00960031]
[1744371036617,4.48969,1561.1,1561.0,0.00960031]
[1744371038623,4.48969,1561.1,1561.0,1.29157031]
[1744371038824,1.28185,1561.2,1561.1,1.28189]
[1744371039723,1.28189,1561.1,1561.0,3.97790031]
[1744371040016,1.28189,1561.1,1561.0,1.29150031]
[1744371041322,1.28189,1561.1,1561.0,0.00960031]
[1744371041825,1.28189,1561.1,1561.0,1.29157031]
[1744371042425,1.28189,1561.1,1561.0,0.00960031]
[1744371043023,4.48969,1561.1,1561.0,0.00960031]
[1744371046126,0.00639986,1561.5,1561.1,3.20472]
[1744371046327,1.28799986,1561.5,1561.4,1.28164]
[1744371046627,11.20703356,1561.5,1561.4,1.26987073]
[1744371046828,9.92547356,1561.5,1561.4,1.26987073]
[1744371047331,1.28172,1561.3,1561.2,40.8]
[1744371047532,4.48952,1561.3,1561.2,40.8]
[1744371047829,1.28189,1561.1,1561.0,4.19085031]
[1744371048031,3.2078,1561.3,1561.0,2.90890031]
[1744371048234,9.92547356,1561.5,1561.1,2.9089]
[1744371048430,14.41490356,1561.5,1561.4,1.28164]
[1744371048631,1.28172,1561.3,1561.2,5.91725]
[1744371049028,1.28171,1561.4,1561.3,1.2817]
[1744371049331,1.28171,1561.4,1561.2,4.6355]
[1744371049332,1.28176,1561.3,1561.2,1.28176]
[1744371049530,1.28182,1561.2,1561.1,1.28181]
[1744371049924,4.14188,1561.3,1561.2,1.28178]
[1744371050536,1.28182,1561.2,1561.1,1.28183]
[1744371050729,1.28189,1561.1,1561.0,42.08191031]
[1744371050928,1.28189,1561.1,1561.0,42.08197031]
[1744371051634,1.28189,1561.1,1561.0,1.28197031]
[1744371051835,4.48969,1561.1,1561.0,3.1e-07]
[1744371052132,4.17166,1561.2,1561.1,1.28189]
[1744371052327,1.28189,1561.1,1561.0,3.1e-07]
[1744371052533,1.28189,1561.1,1561.0,1.28197031]
[1744371054634,0.00639986,1561.5,1561.1,3.20472]
[1744371054839,1.28168,1561.4,1561.3,1.28168]
[1744371055433,1.28799986,1561.5,1561.4,1.28164]
[1744371055638,0.00639986,1561.5,1561.4,1.28164]
[1744371055836,12.40524199,1561.5,1561.4,1.28164]
[1744371057634,12.40524199,1561.5,1561.4,6.35664]
[1744371058232,12.40524199,1561.5,1561.4,9.56444]
[1744371058441,12.40524199,1561.5,1561.4,14.56444]
[1744371059341,12.40524199,1561.5,1561.4,15.06662421]
[1744371059842,12.40524199,1561.5,1561.4,14.56444]
[1744371060839,0.00639986,1561.5,1561.4,14.56444]
[1744371061543,0.00639986,1561.5,1561.4,9.56444]
[1744371061843,0.00639986,1561.5,1561.4,6.35664]
[1744371065748,2.85579986,1561.5,1561.4,6.35664]
[1744371065939,4.13735986,1561.5,1561.4,6.35664]
[1744371066248,1.28164,1561.4,1561.3,1.2817]
[1744371066445,4.19824,1561.4,1561.3,1.2817]
[1744371066642,11.66664,1561.4,1561.3,1.2817]
[1744371066944,10.385,1561.4,1561.3,1.2817]
[1744371067140,11.66664,1561.4,1561.3,1.2817]
[1744371067348,11.66671,1561.4,1561.2,4.05923]
[1744371067536,4.19832,1561.3,1561.2,4.05923]
[1744371067743,2.9166,1561.3,1561.2,4.05923]
[1744371068341,2.9166,1561.3,1561.1,1.28189]
[1744371068545,3.2078,1561.2,1561.1,1.28189]
[1744371069047,4.19837,1561.3,1561.2,1.2818]
[1744371069348,2.9166,1561.3,1561.2,1.2818]
[1744371069648,1.28184,1561.2,1561.1,1.28183]
[1744371069946,4.1984,1561.3,1561.2,1.2818]
[1744371071751,2.9166,1561.3,1561.2,1.2818]
[1744371071956,4.16905966,1561.4,1561.3,1.28172]
[1744371072250,3.2078,1561.4,1561.3,1.28172]
[1744371072443,3.2078,1561.4,1561.3,3.94392]
[1744371072639,9.96126897,1561.5,1561.4,1.28164]
[1744371072846,8.66215897,1561.5,1561.4,9.45734]
[1744371073042,8.66215897,1561.5,1561.4,14.45734]
[1744371073043,7.30264897,1561.5,1561.4,14.45734]
[1744371073246,5.84561897,1561.5,1561.4,14.45734]
[1744371074157,4.50550897,1561.5,1561.4,14.45734]
[1744371074452,8.97e-06,1561.5,1561.4,14.45734]
[1744371075860,12.40844212,1561.6,1561.5,1.28156]
[1744371075861,0.00959999,1561.6,1561.5,1.28156]
[1744371076159,9.99e-06,1561.6,1561.5,4.03506]
[1744371076461,9.99e-06,1561.6,1561.5,9.03506]
[1744371077652,2.5022,1562.1,1561.8,1.28131]
[1744371077858,12.39884213,1562.3,1561.8,6.35431]
[1744371077859,2.6629,1562.2,1561.8,6.35431]
[1744371078251,2.6629,1562.2,1561.8,8.82991]
[1744371078455,2.6629,1562.2,1561.8,11.99487671]
[1744371079551,5.8707,1562.2,1561.8,11.99487671]
[1744371079766,1.28108,1562.1,1561.8,11.51441]
[1744371080070,2.9237,1562.1,1561.8,11.51441]
[1744371081369,2.9237,1562.1,1561.8,6.35431]
[1744371081571,5.90109,1562.0,1561.8,6.35431]
[1744371082073,3.07956,1561.9,1561.8,6.35431]
[1744371082670,0.29686,1561.9,1561.8,6.35431]
[1744371082866,0.29686,1561.9,1561.8,9.07161]
[1744371083273,0.29686,1561.9,1561.8,11.55611]
[1744371083467,0.29686,1561.9,1561.8,6.48311]
[1744371083669,0.29686,1561.9,1561.8,1.28131]
[1744371084071,3.03536,1561.9,1561.8,3.97411]
[1744371085071,3.03536,1561.9,1561.8,1.28131]
[1744371085072,6.24316,1561.9,1561.8,1.28131]
[1744371085373,5.45796,1561.9,1561.8,1.28131]
[1744371085575,6.73919,1561.9,1561.8,1.28131]
[1744371086576,5.45796,1561.9,1561.8,1.28131]
[1744371086978,6.73919,1561.9,1561.8,1.28131]
[1744371087168,13.66576,1561.9,1561.8,1.28131]
[1744371087672,14.94699,1561.9,1561.8,1.28131]
[1744371088072,13.66576,1561.9,1561.8,1.28131]
[1744371088277,14.94699,1561.9,1561.8,1.28131]
[1744371088467,13.66576,1561.9,1561.8,1.28131]
[1744371089175,0.29686,1561.9,1561.8,1.28131]
[1744371089373,0.29686,1561.9,1561.8,4.16411]
[1744371089770,3.00696,1561.9,1561.8,4.16411]
[1744371090072,1.28146,1561.7,1561.6,1.28146]
[1744371090375,3.2078,1561.7,1561.6,1.28148]
[1744371090774,7.28879,1561.7,1561.6,1.28148]
[1744371090972,1.28158,1561.5,1561.4,1.28159]
[1744371091173,4.48944,1561.5,1561.1,11.14254]
[1744371091378,6.4928,1561.4,1561.3,1.28172]
[1744371091772,1.28174,1561.3,1561.2,1.28173]
[1744371091972,4.08134,1561.3,1561.2,1.28173]
[1744371092167,2.7996,1561.3,1561.2,1.28173]
[1744371092678,4.08132,1561.3,1561.2,1.28173]
[1744371092979,1.28189,1561.1,1561.0,3.1e-07]
[1744371093278,6.34954,1561.2,1561.1,1.28189]
[1744371093971,1.28189,1561.1,1561.0,3.1e-07]
[1744371094179,7.27729,1561.1,1561.0,3.1e-07]
[1744371094478,12.27729,1561.1,1561.0,3.1e-07]
[1744371096477,4.06949,1561.1,1561.0,3.1e-07]
[1744371096672,7.27729,1561.1,1561.0,3.1e-07]
[1744371097480,2.2801,1561.2,1561.1,1.28189]
[1744371097685,5.0405,1561.2,1561.1,1.28189]
[1744371097975,6.32237,1561.2,1561.0,3.1e-07]
[1744371098174,4.04229,1561.1,1561.0,3.1e-07]
[1744371098479,7.71881004,1561.1,1561.0,1.28197]
[1744371099572,7.71881004,1561.1,1560.9,4.11971062]
[1744371099778,1.28197,1561.0,1560.9,4.11971062]
[1744371100274,9.00070004,1561.1,1561.0,1.28197]
[1744371100582,4.04229,1561.1,1561.0,1.28197]
[1744371100973,4.04229,1561.1,1560.9,1.29158031]
[1744371101273,4.04229,1561.1,1561.0,1.28197]
[1744371101474,2.7604,1561.1,1561.0,1.28197]
[1744371102880,4.04229,1561.1,1561.0,1.28197]
[1744371103384,2.7604,1561.1,1561.0,1.28197]
[1744371103578,4.04229,1561.1,1561.0,1.28197]
[1744371103880,2.7604,1561.1,1561.0,1.28197]
[1744371104683,2.7604,1561.1,1560.9,2.89210031]
[1744371104981,2.7604,1561.1,1561.0,1.28197]
[1744371105370,2.7604,1561.1,1560.9,4.17409031]
[1744371105584,1.28197,1561.0,1560.9,2.89210031]
[1744371105881,7.25015,1561.1,1560.9,2.89210031]
[1744371106083,2.9027,1561.0,1560.9,4.17415031]
[1744371106684,2.9027,1561.0,1560.9,1.29165031]
[1744371106685,6.55217,1561.0,1560.9,1.29165031]
[1744371106884,6.55217,1561.0,1560.9,0.00960031]
[1744371108191,11.55217,1561.0,1560.9,0.00960031]
[1744371108982,1.28224,1560.8,1560.5,6.41178]
[1744371109175,1.28244,1560.5,1560.3,4.6505]
[1744371109381,1.28256,1560.3,1560.2,1.28258]
[1744371109979,1.28256,1560.3,1560.2,3.98708]
[1744371110282,1.28256,1560.3,1560.2,2.7045]
[1744371110486,1.28263,1560.2,1560.1,9.9867818]
[1744371110784,1.28263,1560.2,1560.1,11.2694918]
[1744371110983,1.28261,1560.3,1560.2,1.28262]
[1744371111185,1.28263,1560.2,1560.1,11.2694218]
[1744371111385,9.26550031,1560.4,1560.3,1.28254]
[1744371111784,14.26550031,1560.4,1560.3,1.28254]
[1744371111980,1.28263,1560.2,1560.1,9.9867818]
[1744371112180,4.49043,1560.2,1560.1,9.9867818]
[1744371112388,3.2078,1560.2,1560.1,1.29231031]
[1744371112787,9.26551031,1560.4,1560.2,1.28261]
[1744371112982,1.28257,1560.3,1560.1,1.29226031]
[1744371113586,7.98300031,1560.4,1560.1,0.00960031]
[1744371113790,1.29206031,1560.4,1560.2,3.98847]
[1744371114083,1.28254,1560.3,1560.2,3.98847]
[1744371114593,1.28254,1560.3,1560.2,2.7059]
[1744371115083,1.28254,1560.3,1560.2,3.98853]
[1744371115289,1.28263,1560.2,1560.1,1.29225031]
[1744371115791,1.28263,1560.2,1560.1,4.22365031]
[1744371116088,3.21740031,1560.4,1560.1,4.22365031]
[1744371116291,1.2826,1560.3,1560.2,1.28257]
[1744371116492,1.2826,1560.3,1560.2,4.21397]
[1744371117083,1.28263,1560.2,1560.1,0.00960031]
[1744371117284,4.49043,1560.2,1560.1,0.00960031]
[1744371118892,6.0534,1560.2,1559.3,1.12515756]
[1744371119194,3.2078,1559.5,1559.0,25.00384372]
[1744371119398,6.41441,1559.9,1559.0,25.00384372]
[1744371119399,1.28353,1559.1,1559.0,25.00384372]
[1744371119892,4.12913,1559.1,1559.0,25.00384372]
[1744371120497,4.50089031,1559.2,1559.0,26.28742372]
[1744371120692,7.33680031,1559.2,1559.0,1.28358]
[1744371120894,4.50090031,1559.2,1558.9,0.00960031]
[1744371121091,3.21740031,1559.2,1559.1,1.28353]
[1744371121390,3.21740031,1559.2,1559.0,5.075]
[1744371121595,1.28353,1559.1,1559.0,6.35859]
[1744371121995,1.28361,1559.0,1558.9,0.00960031]
[1744371122295,4.49141,1559.0,1558.9,7.93640031]
[1744371123092,1.28361,1559.0,1558.9,7.93640031]
[1744371123594,1.28361,1559.0,1558.9,2.86140031]
[1744371126198,4.49141,1559.0,1558.9,0.00960031]
[1744371126901,1.28361,1559.0,1558.9,0.00960031]
[1744371127199,1.28361,1559.0,1558.9,2.89500031]
[1744371127802,4.49141,1559.0,1558.9,0.00960031]
[1744371129310,1.28361,1559.0,1558.9,1.29330031]
[1744371129600,1.28361,1559.0,1558.9,0.00960031]
[1744371129995,4.11945,1559.1,1558.9,0.00960031]
[1744371130194,4.11945,1559.1,1559.0,1.28361]
[1744371130398,4.11945,1559.1,1559.0,3.98051]
[1744371130602,4.11945,1559.1,1559.0,2.6969]
[1744371131005,1.28361,1559.0,1558.9,0.00960031]
[1744371131305,4.19101,1559.0,1558.9,0.00960031]
[1744371131604,7.39881,1559.0,1558.9,0.00960031]
[1744371134607,1.28402,1558.5,1558.4,49.49304]
[1744371134906,1.28402,1558.5,1558.4,52.31044]
[1744371135110,3.2078,1558.6,1558.5,1.28402]
[1744371135502,9.33776,1558.9,1558.5,9.10142]
[1744371135805,5.9243,1558.9,1558.8,1.28378]
[1744371136110,7.208,1558.9,1558.8,1.28378]
[1744371136299,5.9243,1558.9,1558.8,1.28378]
[1744371136810,7.208,1558.9,1558.8,3.99178]
[1744371137510,5.9243,1558.9,1558.8,3.99178]
[1744371137707,7.208,1558.9,1558.8,2.708]
[1744371137909,1.2838,1558.8,1558.7,1.2838]
[1744371138398,4.15793,1558.8,1558.7,1.28386]
[1744371138603,4.15793,1558.8,1558.7,3.99186]
[1744371138804,1.28386,1558.7,1558.6,3.61648]
[1744371139010,4.09606,1558.7,1558.6,3.61648]
[1744371139307,4.09606,1558.7,1558.6,6.39988]
[1744371139698,4.49156,1558.9,1558.8,1.28378]
[1744371139902,7.30376,1558.9,1558.8,1.28378]
[1744371140106,1.28378,1558.8,1558.7,4.0672]
[1744371140408,1.28386,1558.7,1558.6,3.61654]
[1744371141108,4.09606,1558.7,1558.6,3.61654]
[1744371141312,2.8122,1558.7,1558.6,3.61654]
[1744371141703,2.8122,1558.7,1558.6,6.39994]
[1744371141900,3.66589,1558.8,1558.6,6.39994]
[1744371142104,2.4554,1558.8,1558.7,1.28386]
[1744371142309,8.79876,1559.1,1558.9,1.28365]
[1744371142507,3.73905,1559.0,1558.9,1.28365]
[1744371143015,1.2837,1558.9,1558.8,3.96381]
[1744371143519,3.73905,1559.0,1558.9,1.2837]